{"text_format":"1","workbook":"xlsx","n_sheets":2,"sheets":["Ficha","Cadro Plan de melloras"],"not_rendered":{"charts":0,"images":1,"macros":1,"external_links":0,"defined_names":0,"comments":0,"pivot_tables":0},"unopened":[],"bounds":{"document_bytes":16777216,"sheet_cells":100000,"rows_first":2000,"rows_last":500,"rows_between":2000,"halvings":0,"cell_chars":16384,"cell_head_chars":4096},"cells_cut":0,"cells_raw":0,"read":"whole","date_system":"1900"}

{"sheet":"Ficha","index":0,"n_rows":27,"n_cols":10,"rows_kept":27,"cut":false,"hidden":false,"merged":[[1,0,1,1],[20,0,20,1]]}
[null,"Área de Apoio á Docencia e Calidade",null,null,null,null,"Renovación da acreditación das titulacións oficiais","Realizada","Universidade","Facultade de Ciencias"]
["Ficha de Mellora",null,null,null,null,null,"Seguimento anual das titulacións","Realizada parcialmente","Centro","Facultade de Historia"]
["CENTRO",null,null,null,null,null,"Certificación da implantación do Sistema de Garantía de CALIDADE","Planificada","Titulación","Facultade de Dereito"]
["Nº de Ficha de mellora",2015,null,null,null,null,"SGIC (Revisión pola dirección)","Pendente",null,"Facultade de CC. Empresariais e do Turismo"]
["Curso académico no que se formula a acción",null,null,null,null,null,"Outros",null,null,"Facultade de CC. da Educación"]
["Programa de calidade asociado",null,null,null,null,null,null,null,null,"Escola Superior de Enxeñaría Informática"]
["Criterio do programa ao que se asocia",null,null,null,null,null,null,null,null,"Escola de Enfermaría (Ou)"]
["Ámbito de aplicación",null,null,null,null,null,null,null,null,"Facultade de Belas Artes"]
["Titulación (sempre que o alcance sexa titulación)",null,null,null,null,null,null,null,null,"Facultade de CC. da Educación e do Deporte"]
["Denominación da acción de mellora",null,null,null,null,null,null,null,null,"Escola de Enxeñaría Forestal"]
["Punto débil / Análise das causas",null,null,null,null,null,null,null,null,"Facultade de CC. Sociais e da Comunicación"]
["Obxectivos",null,null,null,null,null,null,null,null,"Facultade de Fisioterapia"]
["Actuacións a desenvolver",null,null,null,null,null,null,null,null,"Escola de Enfermaría (Po)"]
["Data límite para a súa execución",null,null,null,null,null,{"$f":"IF(B14=\"\",\"\",IF(B14<TODAY(),0,IF(B14>TODAY(),2,1)))","v":""},null,null,"Centro Universitario da Defensa"]
["Recursos / financiamento",null,null,null,null,null,null,null,null,"Facultade de Filoloxía"]
["Responsable da súa aplicación",null,null,null,null,null,null,null,null,"Facultade de Bioloxía"]
["Responsable do seguimento",null,null,null,null,null,null,null,null,"Facultade de CC. Económicas e Empresariais"]
["Data para realizar o seguimento",null,null,null,null,null,{"$f":"+IF(B14=\"\",\"\",IF(B18=\"\",\"\",IF(B18>=B14,0,\"\")))","v":""},null,null,"Escola de Enxeñaría Industrial"]
["Indicadores de execución ou evidencias documentais da súa implantación",null,null,null,null,null,null,null,null,"Escola de Enxeñaría de Telecomunicación"]
["OBSERVACIÓNS",null,null,null,null,null,null,null,null,"Escola de Estudos Empresariais"]
["Revisión / Valoración da acción de mellora",null,null,null,null,null,null,null,null,"Escola Técnica Superior de Enxeñaría de Minas"]
["Estado / Nivel de cumprimento",null,null,null,null,null,{"$f":"+IF(B22=\"\",\"\",IF(B22=\"Realizada\",3,IF(B22=\"Realizada parcialmente\",2,IF(B22=\"Planificada\",1,0))))","v":""},null,null,"Facultade de Ciencias do Mar"]
["Resultados obtidos",null,null,null,null,null,null,null,null,"Facultade Química"]
["Grado de satisfacción",null,null,null,null,null,null,null,null,"Escola de Maxisterio \"María Sedes Sapientae\""]
["Accions correctoras a desenvolver",null,null,null,null,null,null,null,null,"Escola de Enfermaría (Meixoeiro)"]
["Responsable da revisión",null,null,null,null,null,{"$f":"+IF(B26=\"\",\"\",IF(B26=\"Realizada\",3,IF(B26=\"Realizada parcialmente\",2,IF(B26=\"Planificada\",1,0))))","v":""},null,null,"Escola de Enfermaría (Povisa)"]
["Data da revisión",null,null,null,null,null,{"$f":"+IF(B27=\"\",\"\",IF(B27=\"Realizada\",3,IF(B27=\"Realizada parcialmente\",2,IF(B27=\"Planificada\",1,0))))","v":""},null,null,"Escola de Negocios Afundación"]

{"sheet":"Cadro Plan de melloras","index":1,"n_rows":58,"n_cols":36,"rows_kept":58,"cut":false,"hidden":false,"merged":[[3,0,3,17],[2,0,2,23],[3,18,3,23],[1,20,1,23]]}
[null,null,null,null,null,null,null,null,null,null,null,null,null,null,null,null,null,null,null,null,null,null,null,null,null,null,null,null,null,null,null,null,null,"Renovación da acreditación das titulacións oficiais","Planificada","Universidade"]
[null,null,null,null,null,null,null,null,null,null,null,null,null,null,null,null,null,null,null,null,"Área de Calidade",null,null,null,null,null,null,null,null,null,null,null,null,"Seguimento anual das titulacións","Realizada parcialmente","Centro"]
["Cadro de seguimento do plan de melloras",null,null,null,null,null,null,null,null,null,null,null,null,null,null,null,null,null,null,null,null,null,null,null,null,null,null,null,null,null,null,null,null,"Certificación da implantación do Sistema de Garantía de CALIDADE","Realizada","Títulación"]
["Ficha de mellora",null,null,null,null,null,null,null,null,null,null,null,null,null,null,null,null,null,"Revisión / Valoración da acción de mellora",null,null,null,null,null,null,null,null,null,null,null,null,null,null,"SGIC (Revisión pola dirección)","Pendente"]
["CENTRO","Nº de Ficha de mellora","Curso académico no que se formula a acción","Programa de calidade asociado","Criterio do programa ao que se asocia","Ámbito de aplicación","Titulación (sempre que o alcance sexa titulación)","Denominación da acción de mellora","Punto débil / Análise das causas","Obxectivos","Actuacións a desenvolver","Data límite para a súa execución","Recursos / financiamento","Responsable da súa aplicación","Responsable do seguimento","Data para realizar o seguimento","Indicadores de execución ou evidencias documentais da súa implantación","Observacións","Estado / Nivel de cumprimento","Resultados obtidos","Grao de satisfacción","Accions correctoras a desenvolver","Responsable da revisión","Data da revisión",null,null,null,null,null,null,null,null,null,"Outros"]
["Facultade de Ciencias Xurídicas e do Traballo ","2015MAT(26)","2015-2016","Renovación da acreditación das titulacións oficiais","Criterio 1. Organización e desenvolvo","Titulación","Máster en Avogacía","Mellorar a evaluación de prácticas externas (Pontevedra e Vigo).","Necesidade de insistir na esixencia dunha valoración mais ponderada por parte dos titores profesionais.","Mellorar a avaliación das prácticas externas.","No Master en Avogacía do Campus de Vigo e Pontevedra Valorar a posibilidade de modificar a normativa de prácticas externas co fin de darlle un maior peso á memoria final elaborada polo alumnado. En Ourense manter reunións de coordinación cos titores de prácticas externas para explicarlles a importancia dunha valoración máis ponderada.","2016-07-31","Centro","Comisión Académica do Máster","Comisión Académica do Máster, Coordinación","2016-05-31","Informe Final de Practicas",null,null,null,null,null,null,null,null,null,null,null,null,null,null,null,3,"",""]
["Facultade de Dereito de Ourense","2015MAO(25)","2015-2016","Renovación da acreditación das titulacións oficiais","Criterio 1. Organización e desenvolvo","Titulación","Máster en Avogacía","Adaptar cronograma e plan de práctica ao calendario de actas da universidade.","A necesidade de que o plan de prácticas que se aprobe se adapte á data de finalización de entrega de actas.","Cumplir os prazos previstos na universidade para a entrega de actas. ","Adaptar o cronograma e o plan de prácticas á data de finalización de actas fixada pola Universidade. ","2016-07-31","Recursos Propios","Coordinadora profesional e Coordinadora académica","Comisión Académica do Máster","2016-05-31","Cronograma de practicas.",null,null,null,null,null,null,null,null,null,null,null,null,null,null,null,3,"",""]
["Facultade de Dereito de Ourense","2015MAO(24)","2015-2016","Renovación da acreditación das titulacións oficiais","Criterio 1. Organización e desenvolvo","Centro",null,"Facilitar a evaluación de prácticas na segunda oportunidade de avaliación.","Conveniencia de que no cronograma e plan de prácticas que elabore o coordinador profesional quede reflectida a posibilidade de que os alumnos poidan ser avaliados das materias de Prácticas externas básicas e Prácticas externas na segunda oportunidade de avaliación e que poidan continuar as prácticas, se non as completaran a tempo para a primeira oportunidade de avaliación más alá da data inicialmente prevista.","Facilitar os alumnos a realización de prácticas externas e ser avaliados na segunda oportunidade de avaliación.","Incluir no cronograma e plan de prácticas que elabore o coordinador profesional  a posibilidade de que os alumnos poidan ser avaliados das materias de Prácticas externas básicas e Prácticas externas na segunda oportunidade de avaliación.","2016-07-31","Recursos Propios","Coordinadora profesional e Coordinadora académica","Comisión Académica do Máster","2016-05-31","Calendario examenes",null,null,null,null,null,null,null,50,null,null,null,null,null,null,null,{"$f":"IF(L8=\"\",\"\",IF(AND(L8>TODAY(),S8=\"\"),3,IF(AND(L8<TODAY(),S8=\"\"),0,IF(AND(L8>TODAY(),AH8<=2),3,IF(AND(L8<=TODAY(),AH8<=2),0,IF(S8=\"\",\"\"))))))","v":3},{"$f":"+IF(S8=\"\",\"\",IF(S8=\"Realizada\",3,IF(S8=\"Realizada parcialmente\",2,IF(S8=\"Planificada\",1,0))))","v":""},{"$f":"+IF(L8=\"\",\"\",IF(P8=\"\",\"\",IF(P8>=L8,0,\"\")))","v":""}]
["Facultade de Ciencias Xurídicas e do Traballo  e Facultade de Dereito de Ourense","2015MAT(23)","2015-2016","Renovación da acreditación das titulacións oficiais","Criterio 1. Organización e desenvolvo","Titulación","Máster en Avogacía","Analizar a posibilidade de compatibilizar bolsas coa realización de prácticas curriculares.","Necesidade de verificar e aclarar a posibilidade de compatibilizar as prácticas curriculares con bolsas para a realización de prácticas, como as bolsas do Banco Santander que obtiveron varios estudantes durante o presente curso académico e que utilizaron para a realización de prácticas extracurriculares.","Informar aos estudantes das bolsas se é posible compatibilizalas coa realización de prácticas externas.","Solicitar dende a Comisión Académica do Máster información a área de posgrao un informe sobre a posibilidade de compatibilizar as prácticas curriculares con bolsas para a realización de prácticas.","2016-01-20","Centro","Comisión Académica do Máster","Comisión Académica do Máster","2016-05-31","Cronograma de practicas.",null,null,null,null,null,null,null,50,null,null,null,null,null,null,null,{"$f":"IF(L9=\"\",\"\",IF(AND(L9>TODAY(),S9=\"\"),3,IF(AND(L9<TODAY(),S9=\"\"),0,IF(AND(L9>TODAY(),AH9<=2),3,IF(AND(L9<=TODAY(),AH9<=2),0,IF(S9=\"\",\"\"))))))","v":3},{"$f":"+IF(S9=\"\",\"\",IF(S9=\"Realizada\",3,IF(S9=\"Realizada parcialmente\",2,IF(S9=\"Planificada\",1,0))))","v":""},{"$f":"+IF(L9=\"\",\"\",IF(P9=\"\",\"\",IF(P9>=L9,0,\"\")))","v":0}]
["Facultade de Ciencias Xurídicas e do Traballo  e Facultade de Dereito de Ourense","2015MAT(22)","2015-2016","Renovación da acreditación das titulacións oficiais","Criterio 1. Organización e desenvolvo","Titulación","Máster en Avogacía","Avaliar grao de satisfacción PAT .","Segundo se recolle no punto 6.2.4. Actuacións de avaliación do grao de satisfacción\" do Plan de Acción Titorial, solicitar aos estudantes e aos profesores titores do PAT que cubran as enquisas de avaliación do grao de satisfacción (anexos IV-A «Cuestionario final de satisfacción do alumnado» e IV-B «Cuestionario final de satisfacción do titor/a»). Esta actuación non se levou a cabo. ","Mejorar o informe final do PAT elaborado pola coordinadora académica do máster. ","Dende a coordinación do máster, solicitar aos estudantes e aos profesores titores do PAT que cubran as enquisas de avaliación do grao de satisfacción (anexos IV-A «Cuestionario final de satisfacción do alumnado» e IV-B «Cuestionario final de satisfacción do titor/a»).","2016-05-31","Recursos Propios","Coordinadora Académica","Comision de calidae","2016-05-31","Enquisas sadisfacción",null,null,null,null,null,null,null,49,null,null,null,null,null,null,null,{"$f":"IF(L10=\"\",\"\",IF(AND(L10>TODAY(),S10=\"\"),3,IF(AND(L10<TODAY(),S10=\"\"),0,IF(AND(L10>TODAY(),AH10<=2),3,IF(AND(L10<=TODAY(),AH10<=2),0,IF(S10=\"\",\"\"))))))","v":3},{"$f":"+IF(S10=\"\",\"\",IF(S10=\"Realizada\",3,IF(S10=\"Realizada parcialmente\",2,IF(S10=\"Planificada\",1,0))))","v":""},{"$f":"+IF(L10=\"\",\"\",IF(P10=\"\",\"\",IF(P10>=L10,0,\"\")))","v":0}]
["Facultade de Ciencias Xurídicas e do Traballo ","2015MAPV(21)","2015-2016","Renovación da acreditación das titulacións oficiais","Criterio 1. Organización e desenvolvo","Titulación","Máster en Avogacía","Aumentar o número de reuninións anuais do Pat.","Número de reunións insuficiente.","Controlar o desenvolvemento do curso e detectar as deficiencias no funcionamiento do Master.","• Aumentar o número de reunións co alumnado no marco do PAT\n• Tratar de involucrar ao alumnado do segundo curso nas labores de titorización do PAT\n","2016-07-31","Centro","Comisión Académica do Máster, Coordinación","Comisión Académica do Máster, Coordinación","2016-05-31","Informes dos titores do Pat.",null,null,null,null,null,null,null,48,null,null,null,null,null,null,null,{"$f":"IF(L11=\"\",\"\",IF(AND(L11>TODAY(),S11=\"\"),3,IF(AND(L11<TODAY(),S11=\"\"),0,IF(AND(L11>TODAY(),AH11<=2),3,IF(AND(L11<=TODAY(),AH11<=2),0,IF(S11=\"\",\"\"))))))","v":3},{"$f":"+IF(S11=\"\",\"\",IF(S11=\"Realizada\",3,IF(S11=\"Realizada parcialmente\",2,IF(S11=\"Planificada\",1,0))))","v":""},{"$f":"+IF(L11=\"\",\"\",IF(P11=\"\",\"\",IF(P11>=L11,0,\"\")))","v":""}]
["Facultade de Dereito de Ourense","2015MAO(20)","2015-2016","Renovación da acreditación das titulacións oficiais","Criterio 1. Organización e desenvolvo","Centro",null,"Mellorar a avaliación das competencias das materias de prácticas externas.","A conveniencia de baremar os ítems do Anexo III para dar maior peso ao desenvolvemento das competencias e habilidades necesarias para o exercicio da profesión de avogado”, co fin de axustarse ao preceptuado no art. 15.2 b) do Regulamento, segundo o cal “O titor/a da entidade externa avaliará as competencias concretas que a/o estudante debe adquirir segundo a guía docente, valorando especialmente o desenvolvemento das competencias e habilidades necesarias para o exercicio da profesión de avogado, ítem do anexo III no que se representan as demais competencias”.","Mellorar a avaliación das prácticas externas.","Baremar os ítems do Anexo III para dar maior peso ao desenvolvemento das competencias e habilidades necesarias para o exercicio da profesión de avogado”.","2016-07-31","Centro","Comisión Académica do máster",null,null,null,null,null,null,null,null,null,null,47,null,null,null,null,null,null,null,{"$f":"IF(L12=\"\",\"\",IF(AND(L12>TODAY(),S12=\"\"),3,IF(AND(L12<TODAY(),S12=\"\"),0,IF(AND(L12>TODAY(),AH12<=2),3,IF(AND(L12<=TODAY(),AH12<=2),0,IF(S12=\"\",\"\"))))))","v":3},{"$f":"+IF(S12=\"\",\"\",IF(S12=\"Realizada\",3,IF(S12=\"Realizada parcialmente\",2,IF(S12=\"Planificada\",1,0))))","v":""},{"$f":"+IF(L12=\"\",\"\",IF(P12=\"\",\"\",IF(P12>=L12,0,\"\")))","v":""}]
["Facultade de Dereito de Ourense","2015MAO(19)","2015-2016","Renovación da acreditación das titulacións oficiais","Criterio 1. Organización e desenvolvo","Centro",null,"Mellorar información prácticas da web do máster.","Oportunidade de que se publique adecuadamente na web, nos prazos oportunos, toda a información sobre a oferta de despachos dispoñibles, os despachos asignados, o nome e asignación de titores académicos –e non só profesionais-","Mellorar a información da páxina web sobre as prácticas externas.","Publicar adecuadamente na web, nos prazos oportunos, toda a información sobre a oferta de despachos dispoñibles, os despachos asignados, el nombre y asignación de tutores académicos –y no sólo profesionales.","2016-07-31","Centro","Coordinación,  Comisión Académica",null,null,null,null,null,null,null,null,null,null,46,null,null,null,null,null,null,null,{"$f":"IF(L13=\"\",\"\",IF(AND(L13>TODAY(),S13=\"\"),3,IF(AND(L13<TODAY(),S13=\"\"),0,IF(AND(L13>TODAY(),AH13<=2),3,IF(AND(L13<=TODAY(),AH13<=2),0,IF(S13=\"\",\"\"))))))","v":3},{"$f":"+IF(S13=\"\",\"\",IF(S13=\"Realizada\",3,IF(S13=\"Realizada parcialmente\",2,IF(S13=\"Planificada\",1,0))))","v":""},{"$f":"+IF(L13=\"\",\"\",IF(P13=\"\",\"\",IF(P13>=L13,0,\"\")))","v":""}]
["Facultade de Dereito de Ourense","2015MAO(18)","2015-2016","Renovación da acreditación das titulacións oficiais","Criterio 1. Organización e desenvolvo","Centro",null,"Mellorar o calendario de exámes.","Os estudantes puxeron de manifesto no PAT o problema que lles ocasionaba para a preparación da materia que o exame tivera lugar nas dúas últimas horas do día no que remataban a docencia. ","Facilitar a preparación dos exámes.","Reflexionar na Comisión Académica do Máster sobre a conveniencia de fixar os exames nun día distinto ao da finalización da materia e se é necesario proceder a fixar o exame os venres facilitando aos estudantes a preparación dos exames.","2016-01-20","Centro","Comisión Académica do Máster",null,null,null,null,null,null,null,null,null,null,45,null,null,null,null,null,null,null,{"$f":"IF(L14=\"\",\"\",IF(AND(L14>TODAY(),S14=\"\"),3,IF(AND(L14<TODAY(),S14=\"\"),0,IF(AND(L14>TODAY(),AH14<=2),3,IF(AND(L14<=TODAY(),AH14<=2),0,IF(S14=\"\",\"\"))))))","v":3},{"$f":"+IF(S14=\"\",\"\",IF(S14=\"Realizada\",3,IF(S14=\"Realizada parcialmente\",2,IF(S14=\"Planificada\",1,0))))","v":""},{"$f":"+IF(L14=\"\",\"\",IF(P14=\"\",\"\",IF(P14>=L14,0,\"\")))","v":""}]
["Facultade de Ciencias Xurídicas e do Traballo","2015MAPV(17)","2015-2016","Renovación da acreditación das titulacións oficiais","Criterio 2. Información e Transparencia / Criterio 3. Sistema de Garantía de Calidade","Centro","Máster en Avogacía","Difusión da Titulación entre os grupos de interese e a sociedade.","Aumentar o ámbito de divulgación da titulación.","Chegar a un maior número de alumnos pre-universitarios.","Publicidade.","2016-07-31","Centro","Comision Academica do Master e Cordinadora","Decanato","2016-04-30","Accións públicas en colexios e nos medios","Acción cíclica, que se mantén de forma continuada","Realizada",null,null,"Continuar coa difusión ","Decanatos ","2016-07-31",44,null,null,null,null,null,null,null,{"$f":"IF(L15=\"\",\"\",IF(AND(L15>TODAY(),S15=\"\"),3,IF(AND(L15<TODAY(),S15=\"\"),0,IF(AND(L15>TODAY(),AH15<=2),3,IF(AND(L15<=TODAY(),AH15<=2),0,IF(S15=\"\",\"\"))))))","v":false},{"$f":"+IF(S15=\"\",\"\",IF(S15=\"Realizada\",3,IF(S15=\"Realizada parcialmente\",2,IF(S15=\"Planificada\",1,0))))","v":3},{"$f":"+IF(L15=\"\",\"\",IF(P15=\"\",\"\",IF(P15>=L15,0,\"\")))","v":""}]
["Facultade de Ciencias Xurídicas e do Traballo ","2015MPV(16)","2015-2016","Certificación da implantación do Sistema de Garantía de CALIDADE","Criterio 3.  Sistema de Garantía de Calidade // Directriz 2. Como o Centro garante a calidade dos seus programas formativos. ","Centro",null,"Mellorar nota da gestion de calidade.","Relativo baixo nivel de satisfacción mostrado polo alumnado na enquisa do curso 2014/2015 respecto da xestión da calidade, Aínda que o índice de satisfacción do profesorado coa xestión da calidade é alto, é o apartado que recibe unha menor valoración.",null,"Mellorar a percepción e satisfacción do alumnado coa xestión da calidade e mellorar a percepción e satisfacción do profesorado coa xestión da calidade.","2016-07-31","Propios","Xunta de Centro","Comision de calidade","2016-04-30",null,null,null,null,null,null,null,null,43,null,null,null,null,null,null,null,{"$f":"IF(L16=\"\",\"\",IF(AND(L16>TODAY(),S16=\"\"),3,IF(AND(L16<TODAY(),S16=\"\"),0,IF(AND(L16>TODAY(),AH16<=2),3,IF(AND(L16<=TODAY(),AH16<=2),0,IF(S16=\"\",\"\"))))))","v":3},{"$f":"+IF(S16=\"\",\"\",IF(S16=\"Realizada\",3,IF(S16=\"Realizada parcialmente\",2,IF(S16=\"Planificada\",1,0))))","v":""},{"$f":"+IF(L16=\"\",\"\",IF(P16=\"\",\"\",IF(P16>=L16,0,\"\")))","v":""}]
["Facultade de Dereito de Ourense","2015MAO(15)","2015-2016","Renovación da acreditación das titulacións oficiais","Criterio 3. Sistema de garantía de calidade","Centro",null,"Estructura da Comisión de Calidade.","A estrutura da Comisión de calidade do centro non se corresponde co establecido no  novo manual de calidade aprobado en marzo de 2015.",null,"Modificación da composición da Comisión de Calidade, unha vez aprobado o Regulamento de Réxime Interno da Facultade polo Consello de Goberno da Universidade.","2016-07-31","Recursos Propios","Comisión de Garantía de Calidade",null,null,null,null,null,null,null,null,null,null,42,null,null,null,null,null,null,null,{"$f":"IF(L17=\"\",\"\",IF(AND(L17>TODAY(),S17=\"\"),3,IF(AND(L17<TODAY(),S17=\"\"),0,IF(AND(L17>TODAY(),AH17<=2),3,IF(AND(L17<=TODAY(),AH17<=2),0,IF(S17=\"\",\"\"))))))","v":3},{"$f":"+IF(S17=\"\",\"\",IF(S17=\"Realizada\",3,IF(S17=\"Realizada parcialmente\",2,IF(S17=\"Planificada\",1,0))))","v":""},{"$f":"+IF(L17=\"\",\"\",IF(P17=\"\",\"\",IF(P17>=L17,0,\"\")))","v":""}]
["Facultade de Dereito de Ourense","2015MAO(14)","2015-2016","Renovación da acreditación das titulacións oficiais","Criterio 3. Sistema de garantía de calidade","Centro",null,"Revisión Obxetivos Calidade.","Necesidade de revisión da adecuación dos obxectivos de calidade do centro aos seus indicadores.",null,"Mellorar a definición dos indicadores vinculados aos obxectivos de calidade do centro, se se considera necesario.","2016-07-31","Recursos Propios","Comisión de Garantía de Calidade",null,null,null,null,null,null,null,null,null,null,41,null,null,null,null,null,null,null,{"$f":"IF(L18=\"\",\"\",IF(AND(L18>TODAY(),S18=\"\"),3,IF(AND(L18<TODAY(),S18=\"\"),0,IF(AND(L18>TODAY(),AH18<=2),3,IF(AND(L18<=TODAY(),AH18<=2),0,IF(S18=\"\",\"\"))))))","v":3},{"$f":"+IF(S18=\"\",\"\",IF(S18=\"Realizada\",3,IF(S18=\"Realizada parcialmente\",2,IF(S18=\"Planificada\",1,0))))","v":""},{"$f":"+IF(L18=\"\",\"\",IF(P18=\"\",\"\",IF(P18>=L18,0,\"\")))","v":""}]
["Facultade de Dereito de Ourense","2015MAO(13)","2015-2016","Renovación da acreditación das titulacións oficiais","Criterio 3. Sistema de garantía de calidade","Centro",null,"Ineficiencia dos procedementos do SGIC.","Ineficiencia dos procedementos do SGIC en materia de xestión de persoal e recursos materiais e servizos.",null,"Modificación dos procedementos PE02, PA05, PA06 y PA07.","2016-07-31","Recursos Propios","Comisión de Garantía de Calidade",null,null,null,null,null,null,null,null,null,null,40,null,null,null,null,null,null,null,{"$f":"IF(L19=\"\",\"\",IF(AND(L19>TODAY(),S19=\"\"),3,IF(AND(L19<TODAY(),S19=\"\"),0,IF(AND(L19>TODAY(),AH19<=2),3,IF(AND(L19<=TODAY(),AH19<=2),0,IF(S19=\"\",\"\"))))))","v":3},{"$f":"+IF(S19=\"\",\"\",IF(S19=\"Realizada\",3,IF(S19=\"Realizada parcialmente\",2,IF(S19=\"Planificada\",1,0))))","v":""},{"$f":"+IF(L19=\"\",\"\",IF(P19=\"\",\"\",IF(P19>=L19,0,\"\")))","v":""}]
["Facultade de Dereito de Ourense","2015MAO(12)","2015-2016","Renovación da acreditación das titulacións oficiais","Criterio 3. Sistema de garantía de calidade","Centro",null,"Aplicación informática complexa","Excesiva complexidade no uso da aplicación informática.",null,"Simplificación e racionalización da aplicación informática do SGIC.","2016-07-31","Recursos Propios","Comisión de Garantía de Calidade",null,null,null,null,null,null,null,null,null,null,39,null,null,null,null,null,null,null,{"$f":"IF(L20=\"\",\"\",IF(AND(L20>TODAY(),S20=\"\"),3,IF(AND(L20<TODAY(),S20=\"\"),0,IF(AND(L20>TODAY(),AH20<=2),3,IF(AND(L20<=TODAY(),AH20<=2),0,IF(S20=\"\",\"\"))))))","v":3},{"$f":"+IF(S20=\"\",\"\",IF(S20=\"Realizada\",3,IF(S20=\"Realizada parcialmente\",2,IF(S20=\"Planificada\",1,0))))","v":""},{"$f":"+IF(L20=\"\",\"\",IF(P20=\"\",\"\",IF(P20>=L20,0,\"\")))","v":""}]
["Facultade de Ciencias Xurídicas e do Traballo ","2015MAPV(11)","2015-2016","Renovación da acreditación das titulacións oficiais","Criterio 3. Sistema de garantía de calidade - Criterio 6. Resultados de aprendizaxe","Titulación","Máster en Avogacía","Participación enquisas curso 2015-2016.","Baixa participación do alumnado nas enquisas de satisfacción.","Aumento da participación nas enquisas.","Fomentar a participación do alumnado nas enquisas de satisfacción.","2016-07-31","Centro","Comisión Académica do Máster, Coordinación","Comision academica do master.","2016-05-31","Resultados das enquisas",null,null,null,null,null,null,null,38,null,null,null,null,null,null,null,{"$f":"IF(L21=\"\",\"\",IF(AND(L21>TODAY(),S21=\"\"),3,IF(AND(L21<TODAY(),S21=\"\"),0,IF(AND(L21>TODAY(),AH21<=2),3,IF(AND(L21<=TODAY(),AH21<=2),0,IF(S21=\"\",\"\"))))))","v":3},{"$f":"+IF(S21=\"\",\"\",IF(S21=\"Realizada\",3,IF(S21=\"Realizada parcialmente\",2,IF(S21=\"Planificada\",1,0))))","v":""},{"$f":"+IF(L21=\"\",\"\",IF(P21=\"\",\"\",IF(P21>=L21,0,\"\")))","v":""}]
["Facultade de Ciencias Xurídicas e do Traballo ","2015MPV(10)","2015-2016","Certificación da implantación do Sistema de Garantía de CALIDADE","Criterio 3. Sistema de garantía de calidade //  Directriz 2. Como o Centro garante a calidade dos seus programas formativos. ","Centro",null,"Peche do ciclo de melloras continuas.","Insuficiente debate, valoración e seguimento de certas propostas na Comisión de Calidade.","Peche do ciclo de melloras continuas.","Aumentar o debate e valoración de propostas na Comisión de Calidade. Fixar Compromisos e Prazos de execución nas Actas de dito órgano.","2016-07-31","Recursos Propios","Comisión de Garantía de Calidade ",null,null,null,null,null,null,null,null,null,null,37,null,null,null,null,null,null,null,{"$f":"IF(L22=\"\",\"\",IF(AND(L22>TODAY(),S22=\"\"),3,IF(AND(L22<TODAY(),S22=\"\"),0,IF(AND(L22>TODAY(),AH22<=2),3,IF(AND(L22<=TODAY(),AH22<=2),0,IF(S22=\"\",\"\"))))))","v":3},{"$f":"+IF(S22=\"\",\"\",IF(S22=\"Realizada\",3,IF(S22=\"Realizada parcialmente\",2,IF(S22=\"Planificada\",1,0))))","v":""},{"$f":"+IF(L22=\"\",\"\",IF(P22=\"\",\"\",IF(P22>=L22,0,\"\")))","v":""}]
["Facultade de Ciencias Xurídicas e do Traballo ","2015MPV(09)","2015-2016","Certificación da implantación do Sistema de Garantía de CALIDADE","Criterio 3. Sistema de garantía de calidade //  Directriz 2. Como o Centro garante a calidade dos seus programas formativos. ","Centro",null,"Variación dos ratios dos obxectivos de calidade.","Ratios dos obxectivos de calidade calculados sobre base  7.","Variación dos ratios dos obxectivos de calidade para calculalos sobre base 5.","Revisión dos ratios dos obxectivos de calidade.","2016-07-31","Recursos Propios","Comisión de Garantía de Calidade ",null,null,null,null,null,null,null,null,null,null,36,null,null,null,null,null,null,null,{"$f":"IF(L23=\"\",\"\",IF(AND(L23>TODAY(),S23=\"\"),3,IF(AND(L23<TODAY(),S23=\"\"),0,IF(AND(L23>TODAY(),AH23<=2),3,IF(AND(L23<=TODAY(),AH23<=2),0,IF(S23=\"\",\"\"))))))","v":3},{"$f":"+IF(S23=\"\",\"\",IF(S23=\"Realizada\",3,IF(S23=\"Realizada parcialmente\",2,IF(S23=\"Planificada\",1,0))))","v":""},{"$f":"+IF(L23=\"\",\"\",IF(P23=\"\",\"\",IF(P23>=L23,0,\"\")))","v":""}]
["Facultade de Ciencias Xurídicas e do Traballo ","2015MAPV(28)","2015-2016","Certificación da implantación do Sistema de Garantía de CALIDADE","Criterio 3. Sistema de garantía de calidade //  Directriz 5. Como o Centro garante a calidade dos seus recursos materiais e servizos.","Centro",null,"Correcta implantación do procedemento de xestión dos recursos materiais.","Falta de análise e concreción de tal procedemento.","Correcta implantación do procedemento relativo os recusos materias.","Elaborar criterios para a selección de proveedores e ficha de pedido.","2016-07-31","Centro","Reitoria",null,"2016-05-31",null,null,null,null,null,null,null,null,35,null,null,null,null,null,null,null,{"$f":"IF(L24=\"\",\"\",IF(AND(L24>TODAY(),S24=\"\"),3,IF(AND(L24<TODAY(),S24=\"\"),0,IF(AND(L24>TODAY(),AH24<=2),3,IF(AND(L24<=TODAY(),AH24<=2),0,IF(S24=\"\",\"\"))))))","v":3},{"$f":"+IF(S24=\"\",\"\",IF(S24=\"Realizada\",3,IF(S24=\"Realizada parcialmente\",2,IF(S24=\"Planificada\",1,0))))","v":""},{"$f":"+IF(L24=\"\",\"\",IF(P24=\"\",\"\",IF(P24>=L24,0,\"\")))","v":""}]
["Facultade de Ciencias Xurídicas e do Traballo ","2015MAPV(27)","2015-2016","Certificación da implantación do Sistema de Garantía de CALIDADE","Criterio 3. Sistema de garantía de calidade // Directriz 5. Como o Centro garante a calidade dos seus recursos materiais e servizos.","Centro",null,"Enquisas de satisfacción PAS.","Falta de información acerca da satisfacción do PAS","Coñecemento das necesidades do PAS.","Solicitude dunhas enquisas de satisfacción do PAS.","2016-07-31","Centro","Reitoria",null,"2016-05-31",null,null,null,null,null,null,null,null,34,null,null,null,null,null,null,null,{"$f":"IF(L25=\"\",\"\",IF(AND(L25>TODAY(),S25=\"\"),3,IF(AND(L25<TODAY(),S25=\"\"),0,IF(AND(L25>TODAY(),AH25<=2),3,IF(AND(L25<=TODAY(),AH25<=2),0,IF(S25=\"\",\"\"))))))","v":3},{"$f":"+IF(S25=\"\",\"\",IF(S25=\"Realizada\",3,IF(S25=\"Realizada parcialmente\",2,IF(S25=\"Planificada\",1,0))))","v":""},{"$f":"+IF(L25=\"\",\"\",IF(P25=\"\",\"\",IF(P25>=L25,0,\"\")))","v":""}]
["Facultade de Ciencias Xurídicas e do Traballo  e Facultade de Dereito de Ourense","2015MAT(08)","2015-2016","Renovación da acreditación das titulacións oficiais","Criterio 4 .Recursos Humanos","Titulación","Máster en Avogacía","Instar o adecuado recoñecemento dos labores desempeñados  polos docentes no máster.","A sobrecarga de traballo que padece o profesorado do Máster derivada da necesidado de satisfacer, atendendo a criterios de calidade, a alta demanda que cada curso experimentan os distintos títulos que oferta o Centro.","Mellorar os recoñecemento docentes.","Solicitar ás instancias competentes que se (i) recoñezan ao profesorado os labores que realizan á marxe da docencia no marco do Máster (coordinación de materias, composición de tribunais de TFM, titorizar prácticas externas, etc) e (ii) incrementar os exiguos recoñecementos que atribúen a certas labores como a dirección do TFM.","2016-07-31","Centro y Reitoria","Comisión académica do máster, Reitoria","Comision academica do master","2016-05-31","Comunicación da petición á Reitoría",null,null,null,null,null,null,null,33,null,null,null,null,null,null,null,{"$f":"IF(L26=\"\",\"\",IF(AND(L26>TODAY(),S26=\"\"),3,IF(AND(L26<TODAY(),S26=\"\"),0,IF(AND(L26>TODAY(),AH26<=2),3,IF(AND(L26<=TODAY(),AH26<=2),0,IF(S26=\"\",\"\"))))))","v":3},{"$f":"+IF(S26=\"\",\"\",IF(S26=\"Realizada\",3,IF(S26=\"Realizada parcialmente\",2,IF(S26=\"Planificada\",1,0))))","v":""},{"$f":"+IF(L26=\"\",\"\",IF(P26=\"\",\"\",IF(P26>=L26,0,\"\")))","v":""}]
["Facultade de Ciencias Xurídicas e do Traballo  e Facultade de Dereito de Ourense","2015MAT(07)","2015-2016","Renovación da acreditación das titulacións oficiais","Criterio 4 .Recursos Humanos","Titulación","Master en Avogacía","Solicitar PAS de calidade para o máster.","Carencia de persoal de apoio permanente para a xestión das cuestións relativas á calidade.","Mellorar a xestión do máster.","Reiterar ante as instancias competentes a necesidad de  persoal de administración e servizos para o centro con funcións de calidade con formación e non provisional.","2016-07-31","Reitoría","Reitoría","Comision academica do master","2016-05-31","Comunicación da petición á Reitoría",null,null,null,null,null,null,null,32,null,null,null,null,null,null,null,{"$f":"IF(L27=\"\",\"\",IF(AND(L27>TODAY(),S27=\"\"),3,IF(AND(L27<TODAY(),S27=\"\"),0,IF(AND(L27>TODAY(),AH27<=2),3,IF(AND(L27<=TODAY(),AH27<=2),0,IF(S27=\"\",\"\"))))))","v":3},{"$f":"+IF(S27=\"\",\"\",IF(S27=\"Realizada\",3,IF(S27=\"Realizada parcialmente\",2,IF(S27=\"Planificada\",1,0))))","v":""},{"$f":"+IF(L27=\"\",\"\",IF(P27=\"\",\"\",IF(P27>=L27,0,\"\")))","v":""}]
["Facultade de Ciencias Xurídicas e do Traballo","2015MAT(06)","2015-2016","Renovación da acreditación das titulacións oficiais","Criterio 4 .Recursos Humanos","Centro",null,"Mellorar a dotación de persoal administrativo de apoio ás titulacións.","Necesidade de mellorar os servizos administrativos de atención ao alumnado, profesorado e calidade das titulacións do Centro.","Mellora do servizo que se suministra á comunidade universitaria e á sociedade.","Petición a Reitoría","2016-07-31","Reitoría","Reitoría-Xerencia","Decanato","2016-03-31","Escrito solicitude reitoria",null,"Pendente","A taxa de reposicón de efectivos e a limitación da contratación pola Lei de Orzamentos, non permite a execución deste punto.","Malo, debido a imposibilidade de executar esta mellora.","Modificación da normativa en Vigor.",null,null,31,null,null,null,null,null,null,null,{"$f":"IF(L28=\"\",\"\",IF(AND(L28>TODAY(),S28=\"\"),3,IF(AND(L28<TODAY(),S28=\"\"),0,IF(AND(L28>TODAY(),AH28<=2),3,IF(AND(L28<=TODAY(),AH28<=2),0,IF(S28=\"\",\"\"))))))","v":3},{"$f":"+IF(S28=\"\",\"\",IF(S28=\"Realizada\",3,IF(S28=\"Realizada parcialmente\",2,IF(S28=\"Planificada\",1,0))))","v":0},{"$f":"+IF(L28=\"\",\"\",IF(P28=\"\",\"\",IF(P28>=L28,0,\"\")))","v":""}]
["Facultade de Dereito de Ourense","2015MAO(05)","2015-2016","Renovación da acreditación das titulacións oficiais","Criterio 4 .Recursos Humanos","Centro","Máster en Avogacía","Distribuir equitativamente a titorización do TFM.","Algúns dos profesores do máster dirixen máis de dous TFM mentras outros profesores non dirixen ningún. ","Distrubuir equitativamente a titorización dos TFM.","Determinar na Comisión Académica do Máster determinará o número máximo de traballos dos que será titor/a cada docente atendendo ao número de alumnado matriculado na materia.","2016-09-30","Centro","Comisión académimca do máster",null,null,null,null,null,null,null,null,null,null,30,null,null,null,null,null,null,null,{"$f":"IF(L29=\"\",\"\",IF(AND(L29>TODAY(),S29=\"\"),3,IF(AND(L29<TODAY(),S29=\"\"),0,IF(AND(L29>TODAY(),AH29<=2),3,IF(AND(L29<=TODAY(),AH29<=2),0,IF(S29=\"\",\"\"))))))","v":3},{"$f":"+IF(S29=\"\",\"\",IF(S29=\"Realizada\",3,IF(S29=\"Realizada parcialmente\",2,IF(S29=\"Planificada\",1,0))))","v":""},{"$f":"+IF(L29=\"\",\"\",IF(P29=\"\",\"\",IF(P29>=L29,0,\"\")))","v":""}]
["Facultade de Ciencias Xurídicas e do Traballo e Facultade de Dereito de Ourense","2015MAPV(04)","2015-2016","Renovación da acreditación das titulacións oficiais","Criterio 5. Recursos Materiais","Centro",null,"Incremento dos recursos bibliográficos.","Baixa aportación de recursos dinerarios pola Reitoría.","Incrementar os fondos bibiliográficos e documentais dos estudios en Dereito.","Solicitar da Reitoría unha maior dotación orzamentaria.","2016-12-31","Reitoría","Reitoría","Comisión de Garantía de Calidade de ambos Centros y Las comisiones Academicas do Master.","2016-07-31","Comunicación da petición á Reitoría",null,null,null,null,null,null,null,29,null,null,null,null,null,null,null,{"$f":"IF(L30=\"\",\"\",IF(AND(L30>TODAY(),S30=\"\"),3,IF(AND(L30<TODAY(),S30=\"\"),0,IF(AND(L30>TODAY(),AH30<=2),3,IF(AND(L30<=TODAY(),AH30<=2),0,IF(S30=\"\",\"\"))))))","v":3},{"$f":"+IF(S30=\"\",\"\",IF(S30=\"Realizada\",3,IF(S30=\"Realizada parcialmente\",2,IF(S30=\"Planificada\",1,0))))","v":""},{"$f":"+IF(L30=\"\",\"\",IF(P30=\"\",\"\",IF(P30>=L30,0,\"\")))","v":""}]
["Facultade de Ciencias Xurídicas e do Traballo ","2015MAPV(03)","2015-2016","Renovación da acreditación das titulacións oficiais","Criterio 5. Recursos Materiais","Titulación","Máster en Avogacía","Cambio mobiliario aula Colexio Avogados Vigo.","Disposición mobiliario Aula Colexio Avogados Vigo.","Mellorar o mobiliario da aula do Colexio de Avogados de Vigo.","Medios materiais: mobiliario aulas Colexio Avogados Vigo.","2016-07-31","Colexio de avogados","Colexio de avogados.","Comision academica do master","2016-05-31",null,null,null,null,null,null,null,null,28,null,null,null,null,null,null,null,{"$f":"IF(L31=\"\",\"\",IF(AND(L31>TODAY(),S31=\"\"),3,IF(AND(L31<TODAY(),S31=\"\"),0,IF(AND(L31>TODAY(),AH31<=2),3,IF(AND(L31<=TODAY(),AH31<=2),0,IF(S31=\"\",\"\"))))))","v":3},{"$f":"+IF(S31=\"\",\"\",IF(S31=\"Realizada\",3,IF(S31=\"Realizada parcialmente\",2,IF(S31=\"Planificada\",1,0))))","v":""},{"$f":"+IF(L31=\"\",\"\",IF(P31=\"\",\"\",IF(P31>=L31,0,\"\")))","v":""}]
["Facultade de Ciencias Xurídicas e do Traballo  e Facultade de Dereito de Ourense","2015MAT(02)","2015-2016","Renovación da acreditación das titulacións oficiais","Criterio 7. Indicadores de satisfacción e rendemento","Titulación","Máster en Avogacía","Dispoñer dos resultados do examen de acceso á profesión.","Necesidade de coñecer os resultados acadados polos estudantes no examen de acceso á profesión de avogado. ","Dispoñer os resultados.","Instar aos órganos competentes a obtención de información sobre os resultados acadados polos estudantes do Máster no exame de acceso á profesión de abogado.","2016-07-31","Reitoria","Reitoría","Coordinacion Academica Master","2016-05-31","Comunicación da petición á Reitoría",null,null,null,null,null,null,null,27,null,null,null,null,null,null,null,{"$f":"IF(L32=\"\",\"\",IF(AND(L32>TODAY(),S32=\"\"),3,IF(AND(L32<TODAY(),S32=\"\"),0,IF(AND(L32>TODAY(),AH32<=2),3,IF(AND(L32<=TODAY(),AH32<=2),0,IF(S32=\"\",\"\"))))))","v":3},{"$f":"+IF(S32=\"\",\"\",IF(S32=\"Realizada\",3,IF(S32=\"Realizada parcialmente\",2,IF(S32=\"Planificada\",1,0))))","v":""},{"$f":"+IF(L32=\"\",\"\",IF(P32=\"\",\"\",IF(P32>=L32,0,\"\")))","v":""}]
["Facultade de Ciencias Xurídicas e do Traballo  e Facultade de Dereito de Ourense","2015MAT(01)","2015-2016","Renovación da acreditación das titulacións oficiais","Criterio 7. Indicadores de satisfacción e rendemento","Titulación","Máster en Avogacía","Seguimiento egresados.","Necesidade de realizar un seguimento dos egresados e doutros grupos de interese.","Coñecemento dos resultados do Máster.","Instar aos órganos competentes a obtención de datos sobre a traxectoria laboral dos egresados.","2016-07-31","Reitoria","Reitoría","Coordinacion Academica Master","2016-05-31","Comunicación da petición á Reitoría",null,null,null,null,null,null,null,26,null,null,null,null,null,null,null,{"$f":"IF(L33=\"\",\"\",IF(AND(L33>TODAY(),S33=\"\"),3,IF(AND(L33<TODAY(),S33=\"\"),0,IF(AND(L33>TODAY(),AH33<=2),3,IF(AND(L33<=TODAY(),AH33<=2),0,IF(S33=\"\",\"\"))))))","v":3},{"$f":"+IF(S33=\"\",\"\",IF(S33=\"Realizada\",3,IF(S33=\"Realizada parcialmente\",2,IF(S33=\"Planificada\",1,0))))","v":""},{"$f":"+IF(L33=\"\",\"\",IF(P33=\"\",\"\",IF(P33>=L33,0,\"\")))","v":""}]
["Facultade de Ciencias Xurídicas e do Traballo  e Facultade de Dereito de Ourense","MAT(15)","2014-2015","Seguimento anual das titulacións","Criterio 1. Organización e desenvolvo","Titulación","Máster Universitario en Avogacía","Adiantar a defensa do TFM na segunda oportunidade de exame.","Necesidade de adiantar a convocatoria da segunda oportunidade de exame.","Adiantar a segunda oportunidade de exame do TFM, de xullo a marzo, para facilitar que os estudantes se podan presentar ó exame a nivel nacional que os habilita para exercer como avogado.","Solicitude á Comisión de posgrao de adiantar a convocatoria da segunda oportunidade de exame de xullo a marzo.","2015-05-31",null,"Comisión de posgrao. Coordinación académica do Máster.",null,null,null,"A Comisión Académica do Máster en Avogacía da Facultade de Dereito, na súa reunión de 10 de xullo 2014, acordou solicitar á Comisión de Posgrao adiantar a segunda oportunidade de exame (convocatoria de xullo) da defensa do TFM ó mes de febreiro, baseándose nos seguientes argumentos: \n• O máster en Avogacía é un máster de acceso a unha profesión regulada de 90 ECTS que se imparte en tres cuadrimestres. • A defensa del TFM ten lugar ao finalizar  o terceiro cuadrimestre, esto é durante o mes de xaneiro.\n• Unha vez aprobado o máster os estudantes teñen que someterse a un exame a nivel nacional que lles habilita para exercer como avogado, que previsiblemente terá lugar no mes de marzo.\n• No caso de que un estudante non se presente á defensa do TFM ou o suspenda, tería que agardar á segunda\noportunidade de exame (convocatoria de xullo) para presentar o TFM, co que perdería a oportunidade de presentarse á\n proba nacional que lle habilita para exercer a profesión de avogado.\nPor todo eso, dende a coordinación do Máster (campus Ourense, Vigo e Pontevedra)  solicitouse á Comisión de\nPosgrao que se adiantase a segunda oportunidade de defensa do TFM do mes de xullo ó mes de marzo, para facilitar que\nos estudantes se poidan presentar ó exame nacional.\n","Realizada","Durante o curso 2014/2015, a segunda oportunidade de exame para presentar o TFM adiantouse ó  mes de marzo, para facilitar que os estudantes puideran presentarse ao examen nacional. ",null,null,"Comisión de Garantía de Calidade","A CGC revisou a implementación da mellora na súa reunión de 23 de xullo de 2015.",25,null,null,null,null,null,null,null,{"$f":"IF(L34=\"\",\"\",IF(AND(L34>TODAY(),S34=\"\"),3,IF(AND(L34<TODAY(),S34=\"\"),0,IF(AND(L34>TODAY(),AH34<=2),3,IF(AND(L34<=TODAY(),AH34<=2),0,IF(S34=\"\",\"\"))))))","v":false},{"$f":"+IF(S34=\"\",\"\",IF(S34=\"Realizada\",3,IF(S34=\"Realizada parcialmente\",2,IF(S34=\"Planificada\",1,0))))","v":3},{"$f":"+IF(L34=\"\",\"\",IF(P34=\"\",\"\",IF(P34>=L34,0,\"\")))","v":""}]
["Facultade de Ciencias Xurídicas e do Traballo  e Facultade de Dereito de Ourense","MAT(13)","2014-2015","Seguimento anual das titulacións","Criterio 1. Organización e desenvolvo","Titulación","Máster en Avogacía","Aprobación da programación docente do máster coa maior brevidade.","Necesidade de anticipar a información sobre á programación docente.","Aprobar a programación docente para o curso seguinte, coa maior brevidade posible.","Planificación e aprobación da programación docente para o curso seguinte coa maior brevidade posible,tendo en conta a data de aprobación do calendario académico da Universidade.","2015-05-31",null,"Comisión Académica do Máster",null,null,"Segundo cuadrimestre do curso 2014/2015",null,"Realizada","A comisión académica do Máster na súa reunión ordinadira do día 13 de xullo de 2015 aprobou o calendario de actividades docentes e de avaliación; os horarios e o calendario de exames para o curso académico 2015/2016, antes do primeiro prazo de matrícula para facilitar que os estudantes dispuñeran de toda a información sobre a programación docente con antelación a formalizar a súa matrícula.",null,null,"Comisión de Garantía de Calidade","A CGC revisou a implementación da mellora na súa reunión de 23 de xullo de 2015",24,null,null,null,null,null,null,null,{"$f":"IF(L35=\"\",\"\",IF(AND(L35>TODAY(),S35=\"\"),3,IF(AND(L35<TODAY(),S35=\"\"),0,IF(AND(L35>TODAY(),AH35<=2),3,IF(AND(L35<=TODAY(),AH35<=2),0,IF(S35=\"\",\"\"))))))","v":false},{"$f":"+IF(S35=\"\",\"\",IF(S35=\"Realizada\",3,IF(S35=\"Realizada parcialmente\",2,IF(S35=\"Planificada\",1,0))))","v":3},{"$f":"+IF(L35=\"\",\"\",IF(P35=\"\",\"\",IF(P35>=L35,0,\"\")))","v":""}]
["Facultade de Ciencias Xuridicas e de Traballo","MAPV(29)","2014-2015","Seguimento anual das titulacións","Criterio 1. Organización e desenvolvo","Centro",null,"Implementación do PAT.","PAT non integrado no segundo curso do Máster.","Implantar o PAT no segundo curso do Máster con unha perspectiva orientada ao exercicio profesional e ao TFM.","Reunións co alumnado de 2º curso.","31/06/2015",null,"Coordinador/a do Título\nComisión Académica do Máster\nComisión de Calidade",null,null,null,null,"Realizada",null,null,null,null,null,23,null,null,null,null,null,null,null,{"$f":"IF(L36=\"\",\"\",IF(AND(L36>TODAY(),S36=\"\"),3,IF(AND(L36<TODAY(),S36=\"\"),0,IF(AND(L36>TODAY(),AH36<=2),3,IF(AND(L36<=TODAY(),AH36<=2),0,IF(S36=\"\",\"\"))))))","v":false},{"$f":"+IF(S36=\"\",\"\",IF(S36=\"Realizada\",3,IF(S36=\"Realizada parcialmente\",2,IF(S36=\"Planificada\",1,0))))","v":3},{"$f":"+IF(L36=\"\",\"\",IF(P36=\"\",\"\",IF(P36>=L36,0,\"\")))","v":""}]
["Facultade de Ciencias Xurídicas e do Traballo  e Facultade de Dereito de Ourense","MAOT(04)","2014-2015","Seguimento anual das titulacións","Criterio 1. Organización e desenvolvo","Titulación","Máster Universitario en Avogacía","Creación dunha comisión de coordinación do Máster Universitario en Avogacía pola Universidade de Vigo.","Necesidade de coordinación entre las Facultades nas que se imparte o Máster.","Maior cohesión, entre as Facultades, na toma de decisións comúns relacionadas co Título a través da Comisión de Coordinación do Máster universitario en Avogacía pola Universidade de Vigo.","Creación dunha comisión de coordinación e aprobación dun regulamento de actuación.","2015-01-31",null,"Decanos das Facultades de Dereito e  Ciencias Xurídicas e do Traballo e coodinadores académicos do máster.",null,null,"Posta en marcha durante o curso 2014/2015 e no centro de Ciencias Xudirdicas e de Traballo - Acta Comisión de Calidade 10/10/14. e Acta Comisión de Calidade 14/11/14.","Esta mellora presentouse como \" Mellora  de máster\"  asociada a dous criterios o C02: Xustificación  e o C05: Planificación das ensinanzas. \nXurdiu a necesidade de crear unha Comisión de Coordinación formada polos Decanos da Facultade de Ciencias Xurídicas e do Traballo e a Facultade de Dereito; os Decanos dos Ilustres Colexios de Avogados de Ourense, Vigo e Pontevedra (ou a persoa en quen deleguen); os Coordinadores Académicos do máster que se imparte no Campus de Vigo, Ourense e Pontevedra e os Secretarios das Comisións Académicas do Máster. Esta comisión terá como finalidade coordinar o funcionamento do máster que se imparte nos tres campus de Vigo, Ourense e Pontevedra.","Realizada","A normativa sobre a composición e funcionamento da Comisión de Coordinación do Máster en Avogacía da Facultade de Ciencias Xurídicas e do Traballo de Vigo e da Facultade de Dereito foi aprobada pola Xunta de Facultade de Dereito o día 17 de decembro de 2014.\nDurante o curso académico 2014/2015 realizouse unha reunión deste tipo, o día 10 de xuño de 2015 coa seguinte finalidade:\n• Coordinación das guías docentes\n• Análise dos resultados do PAT\n• Análise dos resultados académicos\n• Análise dos recursos humanos asignados á docencia\n• Análise da información pública do título\n• Establecemento de medidas de coordinación entre os centros.",null,null,"Comisión de Garantía de Calidade","A CGC revisou a implementación da mellora na súa reunión de 23 de xullo de 2015.",22,null,null,null,null,null,null,null,{"$f":"IF(L37=\"\",\"\",IF(AND(L37>TODAY(),S37=\"\"),3,IF(AND(L37<TODAY(),S37=\"\"),0,IF(AND(L37>TODAY(),AH37<=2),3,IF(AND(L37<=TODAY(),AH37<=2),0,IF(S37=\"\",\"\"))))))","v":false},{"$f":"+IF(S37=\"\",\"\",IF(S37=\"Realizada\",3,IF(S37=\"Realizada parcialmente\",2,IF(S37=\"Planificada\",1,0))))","v":3},{"$f":"+IF(L37=\"\",\"\",IF(P37=\"\",\"\",IF(P37>=L37,0,\"\")))","v":""}]
["Facultade de Dereito de Ourense","MAO(19)","2014-2015","Seguimento anual das titulacións","Criterio 1. Organización e desenvolvo","Centro",null,"Analizar o indicador 74 das enquisas de satisfacción.","Necesidade de mellorar os resultados das enquisas de satisfacción.","Analizar na Comisión Académica o indicador 74 das enquisas de satisfacción coa finalidade de adoptar aquelas medidas que se consideren necesarias.","Analizar na Comisión Académica o indicador 74 das enquisas de satisfacción.\nAdoptar  medidas necesarias.","2015-05-31",null,null,null,null,null,"Os resultados das enquisas de satisfacción no indicador 74 non son satisfactorios, polo que a comisión académica do máster analizaraos para adoptar as medidas que se consideren necesarias para melloralas nos cursos seguintes.","Realizada","A comsión académica na súa reunión ordinaria de 2 de decembro de 2014 procedió a analizar os resultados das enquisas de satisfacción, dos resultados das enquisas de avaliación docente, dos resultados dos indicadores académicos e do informe anual de resultados do curso 2013/2014. Na mesma advírtese da necesidade de mellorar os resultados das enquisas. Asemade, acórdase incentivar a participación tanto dos estudantes como dos profesores nas enquisas de satisfacción da titulación. ",null,null,"Comisión de Garantía de Calidade","A CGC revisou a implementación da mellora na súa reunión de 23 de xullo de 2015.",21,null,null,null,null,null,null,null,{"$f":"IF(L38=\"\",\"\",IF(AND(L38>TODAY(),S38=\"\"),3,IF(AND(L38<TODAY(),S38=\"\"),0,IF(AND(L38>TODAY(),AH38<=2),3,IF(AND(L38<=TODAY(),AH38<=2),0,IF(S38=\"\",\"\"))))))","v":false},{"$f":"+IF(S38=\"\",\"\",IF(S38=\"Realizada\",3,IF(S38=\"Realizada parcialmente\",2,IF(S38=\"Planificada\",1,0))))","v":3},{"$f":"+IF(L38=\"\",\"\",IF(P38=\"\",\"\",IF(P38>=L38,0,\"\")))","v":""}]
["Facultade de Dereito de Ourense","MAO(18)","2014-2015","Seguimento anual das titulacións","Criterio 1. Organización e desenvolvo","Centro",null,"Analizar o informe global da titulación.","Necesidade de mellorar a calidade da docencia.","Analizar na Comisión Académica o informe global da titulación en relación cos resultados das materias (ítems 1 e 2) das enquisas de avaliación docente, coa finalidade de adoptar as medidas que se consideren oportunas para mellorar a calidade da docencia.","Analizar na Comisión Académica o informe global da titulación en relación cos resultados das materias (ítems 1 e 2) das enquisas de avaliación docente.\nAdoptar as medidas necesarias para mellorar a calidade da docencia.","2015-05-31",null,"Comisións Académicas do Máster",null,null,null,"Os resultados das enquisas de avaliación docente non son satisfactorios, polo que a comisión académica do máster analizaraos para adoptar as medidas que se consideren necesarias para melloralas nos cursos seguintes.","Realizada","A comsión académica na súa reunión ordinaria de 2 de decembro de 2014 procedió a analizar os resultados das enquisas de satisfacción, dos resultados das enquisas de avaliación docente, dos resultados dos indicadores académicos e do informe anual de resultados do curso 2013/2014. Na mesma advírtese da necesidade de mellorar os resultados das enquisas. Asemade, acórdase incentivar a participación tanto dos estudantes como dos profesores nas enquisas de satisfacción da titulación. ",null,null,"Comisión de Garantía de Calidade","A CGC revisou a implementación da mellora na súa reunión de 23 de xullo de 2015.",20,null,null,null,null,null,null,null,{"$f":"IF(L39=\"\",\"\",IF(AND(L39>TODAY(),S39=\"\"),3,IF(AND(L39<TODAY(),S39=\"\"),0,IF(AND(L39>TODAY(),AH39<=2),3,IF(AND(L39<=TODAY(),AH39<=2),0,IF(S39=\"\",\"\"))))))","v":false},{"$f":"+IF(S39=\"\",\"\",IF(S39=\"Realizada\",3,IF(S39=\"Realizada parcialmente\",2,IF(S39=\"Planificada\",1,0))))","v":3},{"$f":"+IF(L39=\"\",\"\",IF(P39=\"\",\"\",IF(P39>=L39,0,\"\")))","v":""}]
["Facultade de Dereito de Ourense","MAO(16)","2014-2015","Seguimento anual das titulacións","Criterio 1. Organización e desenvolvo","Centro",null,"Valoración global das accións realizadas no Plan de Acción Titorial.","Necesidade de mellorar o Plan de Acción Titorial.","Realizar unha valoración global das accións realizadas dentro do Plan de Acción Tutorial, para analizar se se acadaron os obxectivos previstos e, no seu  caso, propoñer as accións de mellora que se deben incorporar ó PAT do seguinte curso académico.","Analizar as accións realizadas dentro do Plan de Acción Titorial. No caso de ser necesario, propoñer accións de mellora que se incorporarán ó PAT do seguinte curso académico.","2015-05-31",null,"Comisión Académica do Máster",null,null,null,null,"Realizada",null,null,null,"Comisión de Garantía de Calidade","A CGC revisou a implementación da mellora na súa reunión de 23 de xullo de 2015.",19,null,null,null,null,null,null,null,{"$f":"IF(L40=\"\",\"\",IF(AND(L40>TODAY(),S40=\"\"),3,IF(AND(L40<TODAY(),S40=\"\"),0,IF(AND(L40>TODAY(),AH40<=2),3,IF(AND(L40<=TODAY(),AH40<=2),0,IF(S40=\"\",\"\"))))))","v":false},{"$f":"+IF(S40=\"\",\"\",IF(S40=\"Realizada\",3,IF(S40=\"Realizada parcialmente\",2,IF(S40=\"Planificada\",1,0))))","v":3},{"$f":"+IF(L40=\"\",\"\",IF(P40=\"\",\"\",IF(P40>=L40,0,\"\")))","v":""}]
["Facultade de Dereito de Ourense","MAO(08)","2014-2015","Seguimento anual das titulacións","Criterio 1. Organización e desenvolvo","Centro",null,"Elaboración dun acta de avaliación do TFM.",null,"Elaborar un acta de avaliación do TFM que será utilizada polo tribunal avaliador para facilitar a xustificación da súa cualificación avaliando adecuadamente as competencias que o estudante debe adquirir nesa materia repeto á memoria do título.","Elaboración da acta de avaliación do TFM. \nReunión cos membros do tribunal avaliador do TFM para explicarlles o contido da acta de avaliación.","2015-05-31",null,"Comisión Académica do Máster",null,null,null,null,"Realizada","A Comisión Académica do Máster na súa reunión ordinaria do día 10 de setembro de 2014 aprobou a normativa para elaborar o Traballo Fin de Mestrado do Máster Universitario en Avogacía da Universidade de Vigo (Campus de Ourense) e o anexo IV, acta do Tribunal do Traballo Fin de Máser. Dita acta foi utilizada polos membros do tribunal do TFM na convocatoria ordinaria e na convocatoria adiantada de marzo. ",null,null,"Comisión de Garantía de Calidade","A CGC revisou a implementación da mellora na súa reunión de 23 de xullo de 2015.",18,null,null,null,null,null,null,null,{"$f":"IF(L41=\"\",\"\",IF(AND(L41>TODAY(),S41=\"\"),3,IF(AND(L41<TODAY(),S41=\"\"),0,IF(AND(L41>TODAY(),AH41<=2),3,IF(AND(L41<=TODAY(),AH41<=2),0,IF(S41=\"\",\"\"))))))","v":false},{"$f":"+IF(S41=\"\",\"\",IF(S41=\"Realizada\",3,IF(S41=\"Realizada parcialmente\",2,IF(S41=\"Planificada\",1,0))))","v":3},{"$f":"+IF(L41=\"\",\"\",IF(P41=\"\",\"\",IF(P41>=L41,0,\"\")))","v":""}]
["Facultade de Dereito de Ourense","MAO(07)","2014-2015","Seguimento anual das titulacións","Criterio 1. Organización e desenvolvo","Centro",null,"Mellorar a avaliación das competencias.","Necesidade de mellorar a identificación por parte do profesorado das competencias que se avalían.","Fomentar que o profesorado identifique qué competencias se avalían nas metodoloxías docentes recollidas nas Guías das materias.","Realizar reunións cos coordinadores das distintas materias a fin de aclara as competencias que se avalían nas metodoloxías docentes.","2015-05-31",null,"Comisión Académica do Máster",null,null,null,null,"Realizada","Nas guías docentes elaboradas para o curso académico 2015/2016 especifícase as competencias que se avalían con cada metodoloxía docente. Así, no apartado de \"descrición\", explícase en que vai consistir a metodoloxía seleccionada e engadirase tamén o resultado de aprendizaxe que se está avaliando. ",null,null,"Comisión de Garantía de Calidade","A CGC revisou a implementación da mellora na súa reunión de 23 de xullo de 2015.",17,null,null,null,null,null,null,null,{"$f":"IF(L42=\"\",\"\",IF(AND(L42>TODAY(),S42=\"\"),3,IF(AND(L42<TODAY(),S42=\"\"),0,IF(AND(L42>TODAY(),AH42<=2),3,IF(AND(L42<=TODAY(),AH42<=2),0,IF(S42=\"\",\"\"))))))","v":false},{"$f":"+IF(S42=\"\",\"\",IF(S42=\"Realizada\",3,IF(S42=\"Realizada parcialmente\",2,IF(S42=\"Planificada\",1,0))))","v":3},{"$f":"+IF(L42=\"\",\"\",IF(P42=\"\",\"\",IF(P42>=L42,0,\"\")))","v":""}]
["Facultade de Dereito de Ourense","MAO(05)","2014-2015","Seguimento anual das titulacións","Criterio 1. Organización e desenvolvo","Centro",null,"Analizar a avaliación das competencias nas Prácticas externas básicas (primeiro curso) e de Prácticas externas (segundo curso).","Necesidade de analizar a avaliación das competencias.","Unha vez remata a avaliación das materias de Prácticas externas básicas (primeiro curso) e de Prácticas externas (segundo curso), analizar na Comisión Académica do Máster se o informe do titor, segundo o novo modelo previsto no anexo 3 do Regulamento de Prácticas Externas, permite avaliar axeitadamente as competencias.","Analizar se o novo informe de avaliación previsto no anexo 3 do Regulamento de Prácticas Externas permite avaliar axeitadamente  as competencias. Extraer as oportunas conclusións. No caso de non avaliar axeitadamente  as competencias, proceder á modificación do informe de avaliación previsto no anexo 3.","2015-05-31",null,"Comisión Académica do Máster",null,null,"Final do segundo cuadrimestre do primeiro curso, onde se imparte a materia Prácticas externas básicas.\nFinal do primeiro cuadrimestre do segundo curso, onde se imparte a materia Prácticas externas.","Esta mellora presentouse como \" Mellora de Máster\" asociada a dous criterios o C03: Competencias/Obxectivos e ao C05: Planificación das ensinanzas.\nDurante o curso 2013/2014 detectouse que na materia de prácticas externas básicas non se avaliaran correctamente as competencias adquiridas polos estudantes, xa que os titores de prácticas outorgaran a máxima cualificación a case todos os estudantes. Por iso, a Comisión Académica do Máster acordó modificar o regulamento de prácticas externas e para facilitar o labor de avaliación dos titores de prácticas, o anexo 3 correspondente ao informe do titor, especificando os ítems que se deben avaliar cas súas respetivas competencias.\nUnha vez realizada esta modificación, é preciso analizar se resulta adecuada para a avaliación das competencias. ","Realizada","O día 29 de xullo de 2015 celebrase unha reunión de coordinación de prácticas externas, coa finalidade de analizar o sistema de avaliación das materias de prácticas externas básicas (primeiro curso) e prácticas externas (segundo curso). Cómo resultado desta reunión acordouse modificar o Anexo III do Regulamento de Prácticas Externas. \nO día 25 de setembro de 2015, a Comisión Académica do Máster analizou as conclusións da citada reunión e aprobou, por asentimento, a modificación do Anexo III, Informe do titor da entidade externa, do Regulamento de Prácticas Externas. ",null,null,"Comisión de Garantía de Calidade","A CGC revisou a implementación da mellora na súa reunión de 23 de xullo de 2015.",16,null,null,null,null,null,null,null,{"$f":"IF(L43=\"\",\"\",IF(AND(L43>TODAY(),S43=\"\"),3,IF(AND(L43<TODAY(),S43=\"\"),0,IF(AND(L43>TODAY(),AH43<=2),3,IF(AND(L43<=TODAY(),AH43<=2),0,IF(S43=\"\",\"\"))))))","v":false},{"$f":"+IF(S43=\"\",\"\",IF(S43=\"Realizada\",3,IF(S43=\"Realizada parcialmente\",2,IF(S43=\"Planificada\",1,0))))","v":3},{"$f":"+IF(L43=\"\",\"\",IF(P43=\"\",\"\",IF(P43>=L43,0,\"\")))","v":""}]
["Facultade de Ciencias Xurídicas e do Traballo  e Facultade de Dereito de Ourense","MAT(20)","2014-2015","Seguimento anual das titulacións","Criterio 1. Organización e desenvolvos","Títulación","Máster Universitario en Avogacía","Reflexionar sobre a oportunidade de designar un coordinador de módulo.",null,"Reflexionar sobre a oportunidade de designar  coordinadores de módulos, para facilitar a coordinación do máster.","Reflexionar sobre a oportunidade de desinar coordinadores de módulos.",null,null,"Comisión Académica do Máster",null,null,null,"Analizar o papel que o coordinador de módulo desempeñe na coordinación do máster e na elaboración das guías docentes. ","Realizada","A Comisión Académica na súa reunión ordinaria do día 4 de marzo de 2015 procedeu a aprobar o POD e o cadro de recoñecementos do Máster Universitario en Avogacía para o curso 2015/2016. Na mesma acordouse non modificar o sistema de coordinación existente no máster, dado que non se habían plantexado problemas na coordinación das materias. ",null,null,"Comisión de Garantía de Calidade","A CGC revisou a implementación da mellora na súa reunión de 23 de xullo de 2015.",15,null,null,null,null,null,null,null,{"$f":"IF(L44=\"\",\"\",IF(AND(L44>TODAY(),S44=\"\"),3,IF(AND(L44<TODAY(),S44=\"\"),0,IF(AND(L44>TODAY(),AH44<=2),3,IF(AND(L44<=TODAY(),AH44<=2),0,IF(S44=\"\",\"\"))))))","v":""},{"$f":"+IF(S44=\"\",\"\",IF(S44=\"Realizada\",3,IF(S44=\"Realizada parcialmente\",2,IF(S44=\"Planificada\",1,0))))","v":3},{"$f":"+IF(L44=\"\",\"\",IF(P44=\"\",\"\",IF(P44>=L44,0,\"\")))","v":""}]
["Facultade de Ciencias Xurídicas e do Traballo  e Facultade de Dereito de Ourense","MAT(12)","2014-2015","Seguimento anual das titulacións","Criterio 2. Información e transparencia","Titulación","Máster Universitario de Avogacía","Dar publicidade ás convocatorias de axudas e bolsas de mobilidade de estudantes.","Necesidade de ampliar a información da páxina web.","Informar aos estudantes das convocatorias de bolsas e axudas que teñan por finalidade a mobilidade dos estudantes.","Dar publicidade na páxina web do Máster as convocatorias de bolsas e axudas que teñan  por finalidade á mobilidade dos estudantes.","2015-05-31",null,"Coordinación Máster",null,null,"Durante o curso 2014/2015, engadindo nova información conforme sexa necesario.","Importancia de que os estudantes dispoñan de toda a información relativa a bolsas e axudas que faciliten a súa mobilidade.","Realizada","A través da páxina web do master se facilita a todos os estudantes a información relativa a bolsas e axudas de mobilidade, no apartado dedicado a \"alumnado\". ",null,null,"Comisión de Garantía de Calidade","A CGC revisou a implementación da mellora na súa reunión de 23 de xullo de 2015.",14,null,null,null,null,null,null,null,{"$f":"IF(L45=\"\",\"\",IF(AND(L45>TODAY(),S45=\"\"),3,IF(AND(L45<TODAY(),S45=\"\"),0,IF(AND(L45>TODAY(),AH45<=2),3,IF(AND(L45<=TODAY(),AH45<=2),0,IF(S45=\"\",\"\"))))))","v":false},{"$f":"+IF(S45=\"\",\"\",IF(S45=\"Realizada\",3,IF(S45=\"Realizada parcialmente\",2,IF(S45=\"Planificada\",1,0))))","v":3},{"$f":"+IF(L45=\"\",\"\",IF(P45=\"\",\"\",IF(P45>=L45,0,\"\")))","v":""}]
["Facultade de Ciencias Xurídicas e do Traballo  e Facultade de Dereito de Ourense","MAT(01)","2014-2015","Seguimento anual das titulacións","Criterio 2. Información e transparencia","Titulación","Máster Universitario en Avogacía","Ampliación da información da páxina web do Máster.","Necesidade de ampliar a información da páxina web.","Facer a web máis accesible aos interesados e gañar transparencia en todo o concerniente ó máster.","Detallar coa maior claridade o número mínimo de créditos ECTS de matricula.\nDetallar as normas de permanencia e progreso.","31/06/15",null,"Coordinación  Máster",null,null,"Primer cuadrimestre do curso 2014-2015","O número mínimo de créditos non coincide co publicado na memoria, porque no ano 2013 aprobouse a normativa de permanencia e progreso dos estudantes que fixa este número mínimo.\nRespecto ó cumprimento desta mellora.  Realizouse na Facultade de Ourense.","Realizada","No apartado inicio está toda a información relevante da titulación no epígrafe \"descrición do\ntítulo\": http://masteravogacia.webs.uvigo.es/index.html\nA normativa de permanencia da universidade de Vigo está dispoñible no apartado de normativa:\nhttp://masteravogacia.webs.uvigo.es/es/normativa.html\n","Satisfactorio",null,"Comisión de Garantía de Calidade","A CGC revisou a implementación da mellora na súa reunión de 23 de xullo de 2015.",13,null,null,null,null,null,null,null,{"$f":"IF(L46=\"\",\"\",IF(AND(L46>TODAY(),S46=\"\"),3,IF(AND(L46<TODAY(),S46=\"\"),0,IF(AND(L46>TODAY(),AH46<=2),3,IF(AND(L46<=TODAY(),AH46<=2),0,IF(S46=\"\",\"\"))))))","v":false},{"$f":"+IF(S46=\"\",\"\",IF(S46=\"Realizada\",3,IF(S46=\"Realizada parcialmente\",2,IF(S46=\"Planificada\",1,0))))","v":3},{"$f":"+IF(L46=\"\",\"\",IF(P46=\"\",\"\",IF(P46>=L46,0,\"\")))","v":""}]
["Facultade de Ciencias Xuridicas e de Traballo","MAPV(28)","2014-2015","Seguimento anual das titulacións","Criterio 2. Información e transparencia","Centro",null,"Actualizar o Plan de Promoción do centro.","Ausencia de promoción suficiente ante potenciais estudantes e a sociedade en xeral.","Dar a coñecer as Facultades e as titulacións de Grao e Posgrao que nelas se imparten e de ofrecerlles información directa a estudantes potenciais e a sociedade en xeral, acadar unha maior adecuación dos demandantes dos estudos de Dereito de Grao e Posgrao aos perfiles definidos nas memorias dos títulos que se ofertan neste centro, e impulsar a internacionalización das Facultades.","Definir as liñas de acción que se levarán a cabo para acadar os obxectivos sinalados, as persoas que colaborarán nestas accións, así como os criterios de seguimento para poder avaliar periodicamente os resultados logrados e poder establecer as accións de mellora que correspondan.","31/06/2015",null,"Comisión de Garantía de Calidade\nEquipo Decanal\nXunta de Facultade",null,null,"Plan de Promoción 2015-2016, Comisión de Calidad 06/10/2015.","Promocionar o centro e as súas titulacións, Facultade de Dereito e Facultade de Ciencias Xurídicas e do Traballo.","Realizada",null,null,null,null,null,12,null,null,null,null,null,null,null,{"$f":"IF(L47=\"\",\"\",IF(AND(L47>TODAY(),S47=\"\"),3,IF(AND(L47<TODAY(),S47=\"\"),0,IF(AND(L47>TODAY(),AH47<=2),3,IF(AND(L47<=TODAY(),AH47<=2),0,IF(S47=\"\",\"\"))))))","v":false},{"$f":"+IF(S47=\"\",\"\",IF(S47=\"Realizada\",3,IF(S47=\"Realizada parcialmente\",2,IF(S47=\"Planificada\",1,0))))","v":3},{"$f":"+IF(L47=\"\",\"\",IF(P47=\"\",\"\",IF(P47>=L47,0,\"\")))","v":""}]
["Facultade de Ciencias Xuridicas e de Traballo","MAPV(30)","2014-2015","Seguimento anual das titulacións","Criterio 3. Sistema de garantía de calidade","Centro",null,"Simplificación e racionalización do SGIC.","Excesiva complexidade e burocracia do SGIC.","Adaptar os procesos deseñados inicialmente no SGIC á realidade funcional de hoxe nos centros á luz dos cambios e melloras que se produciron e dentro dun Plan de mellora do funcionamento dos SGIC que inclúe a revisión e actualización de toda a documentación de calidade asociada (Manual de Calidade, procedementos e formularios anexos).","Rematar a elaboración definitiva e aprobar os procedementos xa revisados durante o curso 2013/14 e elaborar e aprobar os procedementos do SGIC pendentes de actualizar.","2015-04-30","Recursos humanos Área de Apoio á Docencia e Calidade e Universidade de Vigo","Área de Apoio á Docencia e á Calidade",null,null,"Acta Comisión de Calidade 06/07/14","Mellorar a redacción e claridade dos documentos do SGIC que dependan do centro. ","Realizada",null,null,null,null,null,11,null,null,null,null,null,null,null,{"$f":"IF(L48=\"\",\"\",IF(AND(L48>TODAY(),S48=\"\"),3,IF(AND(L48<TODAY(),S48=\"\"),0,IF(AND(L48>TODAY(),AH48<=2),3,IF(AND(L48<=TODAY(),AH48<=2),0,IF(S48=\"\",\"\"))))))","v":false},{"$f":"+IF(S48=\"\",\"\",IF(S48=\"Realizada\",3,IF(S48=\"Realizada parcialmente\",2,IF(S48=\"Planificada\",1,0))))","v":3},{"$f":"+IF(L48=\"\",\"\",IF(P48=\"\",\"\",IF(P48>=L48,0,\"\")))","v":""}]
["Facultade de Ciencias Xuridicas e de Traballo","MAPV(27)","2014-2015","Seguimento anual das titulacións","Criterio 3. Sistema de garantía de calidade","Centro",null,"Publicación de toda a información relativa a Comisión de Calidade na Web.",null,null,null,"2014-11-30",null,"Coordinador de Calidade\nComisión de Calidade",null,null,null,null,"Realizada","http://cienciasxuridicasedotraballo.webs.uvigo.es/calidade/comision-de-calidade/?lang=es",null,null,null,null,10,null,null,null,null,null,null,null,{"$f":"IF(L49=\"\",\"\",IF(AND(L49>TODAY(),S49=\"\"),3,IF(AND(L49<TODAY(),S49=\"\"),0,IF(AND(L49>TODAY(),AH49<=2),3,IF(AND(L49<=TODAY(),AH49<=2),0,IF(S49=\"\",\"\"))))))","v":false},{"$f":"+IF(S49=\"\",\"\",IF(S49=\"Realizada\",3,IF(S49=\"Realizada parcialmente\",2,IF(S49=\"Planificada\",1,0))))","v":3},{"$f":"+IF(L49=\"\",\"\",IF(P49=\"\",\"\",IF(P49>=L49,0,\"\")))","v":""}]
["Facultade de Ciencias Xuridicas e de Traballo","MAPV(26)","2014-2015","Seguimento anual das titulacións","Criterio 3. Sistema de garantía de calidade","Centro",null,"Establecer un formulario de Suxestións e Reclamacións na Web do Centro.",null,"Fomentar a participación activa de tódolos grupos de interese na mellora da política de calidade do centro e das titulacións que se imparten no mesmo.",null,"31/04/15",null,null,null,null,null,null,"Realizada","http://cienciasxuridicasedotraballo.webs.uvigo.es/calidade/formulario-de-suxestions-e-queixas/",null,null,null,null,9,null,null,null,null,null,null,null,{"$f":"IF(L50=\"\",\"\",IF(AND(L50>TODAY(),S50=\"\"),3,IF(AND(L50<TODAY(),S50=\"\"),0,IF(AND(L50>TODAY(),AH50<=2),3,IF(AND(L50<=TODAY(),AH50<=2),0,IF(S50=\"\",\"\"))))))","v":false},{"$f":"+IF(S50=\"\",\"\",IF(S50=\"Realizada\",3,IF(S50=\"Realizada parcialmente\",2,IF(S50=\"Planificada\",1,0))))","v":3},{"$f":"+IF(L50=\"\",\"\",IF(P50=\"\",\"\",IF(P50>=L50,0,\"\")))","v":""}]
["Facultade de Ciencias Xuridicas e de Traballo","MAPV(25)","2014-2015","Seguimento anual das titulacións","Criterio 3. Sistema de garantía de calidade","Centro",null,"Revisar a Política e obxectivos de calidade do centro.","Os obxectivos deben ser medibles, alcanzables, estar coordinados con plans de mellora, involucrar grupos de interese e desenvolverse con plans de actuación.","Redefinir os obxectivos de calidade existentes, as liñas de actuación e os indicadores que permitan desenvolvelos.",null,"31/04/15",null,"Técnicos Superiores da Área de Apoio á Docencia e Calidade\nComisión de Calidade\nEquipo Decanal",null,null,"Acta Comisión de Calidade 14/11/14, Xunta de Facultade 29/04/2015.",null,"Realizada",null,null,null,null,null,8,null,null,null,null,null,null,null,{"$f":"IF(L51=\"\",\"\",IF(AND(L51>TODAY(),S51=\"\"),3,IF(AND(L51<TODAY(),S51=\"\"),0,IF(AND(L51>TODAY(),AH51<=2),3,IF(AND(L51<=TODAY(),AH51<=2),0,IF(S51=\"\",\"\"))))))","v":false},{"$f":"+IF(S51=\"\",\"\",IF(S51=\"Realizada\",3,IF(S51=\"Realizada parcialmente\",2,IF(S51=\"Planificada\",1,0))))","v":3},{"$f":"+IF(L51=\"\",\"\",IF(P51=\"\",\"\",IF(P51>=L51,0,\"\")))","v":""}]
["Facultade de Ciencias Xuridicas e de Traballo","MAPV(24)","2014-2015","Seguimento anual das titulacións","Criterio 3. Sistema de garantía de calidade","Centro",null,"Revisión da composición da Comisión de Calidade.",null,"Adaptar a composición da Comisión de Calidade á realidade do Centro.",null,"2015-03-30",null,"Comisión de Calidade\nXunta de Facultade",null,null,"Acta Comisión de Calidade 27/10/14.",null,"Realizada",null,null,null,null,null,7,null,null,null,null,null,null,null,{"$f":"IF(L52=\"\",\"\",IF(AND(L52>TODAY(),S52=\"\"),3,IF(AND(L52<TODAY(),S52=\"\"),0,IF(AND(L52>TODAY(),AH52<=2),3,IF(AND(L52<=TODAY(),AH52<=2),0,IF(S52=\"\",\"\"))))))","v":false},{"$f":"+IF(S52=\"\",\"\",IF(S52=\"Realizada\",3,IF(S52=\"Realizada parcialmente\",2,IF(S52=\"Planificada\",1,0))))","v":3},{"$f":"+IF(L52=\"\",\"\",IF(P52=\"\",\"\",IF(P52>=L52,0,\"\")))","v":""}]
["Facultade de Ciencias Xurídicas e do Traballo  e Facultade de Dereito de Ourense","MAT(21)","2014-2015","Seguimento anual das titulacións","Criterio 4. Recursos humanos","Títulación","Máster Universitario en Avogacía","Solicitude de persoal de apoio ó máster.","Necesidade de persoal de apoio á xestión do máster.","Contar con persoal administrativo para a Facultade de Ciencias Xurídicas e do Traballo e para a Facultade de Dereito coa  finalidade  de atender adecuadamente a xestión dos Másteres.","Reiterar ante as instancias competentes a solicitude de reforzo do personal administrativo para a Facultade de Ciencias Xurídicas e do Traballo e para a Facultade de Dereito coa finalidade de atender adecuadamente a xestión dos Másteres.","2015-05-31",null,null,null,null,"Curso 2014-2015",null,"Realizada","???",null,null,"Comisión de Garantía de Calidade","A CGC revisou a implementación da mellora na súa reunión de 23 de xullo de 2015.",6,null,null,null,null,null,null,null,{"$f":"IF(L53=\"\",\"\",IF(AND(L53>TODAY(),S53=\"\"),3,IF(AND(L53<TODAY(),S53=\"\"),0,IF(AND(L53>TODAY(),AH53<=2),3,IF(AND(L53<=TODAY(),AH53<=2),0,IF(S53=\"\",\"\"))))))","v":false},{"$f":"+IF(S53=\"\",\"\",IF(S53=\"Realizada\",3,IF(S53=\"Realizada parcialmente\",2,IF(S53=\"Planificada\",1,0))))","v":3},{"$f":"+IF(L53=\"\",\"\",IF(P53=\"\",\"\",IF(P53>=L53,0,\"\")))","v":""}]
["Facultade de Dereito de Ourense","MAO(22)","2014-2015","Seguimento anual das titulacións","Criterio 4. Recursos humanos","Centro",null,"Reflexionar sobre o resultado do informe global da titulación nas enquisas de avaliación docente.","Necesidade de mellorar os resultados das enquisas de evaluación docente.","Reflexionar nas Comisións Académicas dos Másteres sobre o resultado do informe global da titulación das enquisas de avaliación docente, coa finalidade de  adoptar as medidas que se consideren precisas  para mellorar a calidade do máster e, consecuentemente,o resultado destas enquisas.","Reflexionar sobre o resultado do informe global da titulación das enquisas de evaluación docente. Adoptar as medidas que se consideren precisas para mellorar a calidade do máster e, consecuentemente, o resultado destas enquisas.","2015-05-31",null,"Comsións Académicas do Máster",null,null,null,"Os resultados da maioría dos items analizados nas enquisas están lixeiramente  por debaixo do centro (Facultade de Dereito) e da Universidade de Vigo. Estes resultados deberíanse a que o curso 2013/2014 foi o primeiro ano de implantación do máster. Non obstante, considérase necesario que os resultados destas enquisas sexan analizados pola Comisión Académica do Máster coa finalidade de poder adoptar as medidas que se consideren precisas  para mellorar a calidade do máster e, en consecuencia, o resultado destas enquisas.","Realizada","A comisión académica na súa reunión ordinaria de 2 de decembro de 2014 procedeu a analizar os resultados das enquisas de satisfacción, dos resultados das enquisas de avaliación docente, dos resultados dos indicadores académicos e do informe anual de resultados do curso 2013/2014. Na mesma advírtese da necesidade de mellorar os resultados das enquisas. Asemade, acórdase incentivar a participación tanto dos\nestudantes como dos profesores nas enquisas de satisfacción da titulación. ",null,null,"Comisión de Garantía de Calidade","A CGC revisou a implementación da mellora na súa reunión de 23 de xullo de 2015.",5,null,null,null,null,null,null,null,false,3,""]
["Facultade de Dereito de Ourense","MAO(23)","2014-2015","Seguimento anual das titulacións","Criterio 4. Recursos humanos","Centro",null,"Reflexionar sobre a posibilidade de incluir entre o profesorado do máster a Xuíces, Maxistrados, Fiscais e outros funcionarios ou profesionais.","Necesidade de mellorar a calidade da docencia.","Reflexionar sobre a posibilidade de incluir entre o profesorado do máster a Xuíces, Maxistrados,  Fiscais e outros funcionarios ou profesionais dos que a implicación docente no máster se xustifique polo enriquecemento formativo que comporte para o alumnado.","Reflexionar sobre a posibilidade de incluir entre o profesorado do máster a Xuíces, Maxistrados,  Fiscais e outros funcionarios ou profesionais.",null,null,"Comisión Académica do Máster",null,null,null,null,"Realizada","A Comisión Académica na súa reunión ordinaria do día 4 de marzo de 2015 procedeu a aprobar o POD e o cadro de recoñecementos do Máster Universitario en Avogacía para o curso 2015/2016. Na mesma acordouse que dado que o Máster sería sometido a creditación no curso 2015/2016, este ano non procedía realizar modificacións. ",null,null,"Comisión de Garantía de Calidade","A CGC revisou a implementación da mellora na súa reunión de 23 de xullo de 2015.",4,null,null,null,null,null,null,null,"",3,""]
["Facultade de Ciencias Xurídicas e do Traballo  e Facultade de Dereito de Ourense","MAT(06)","2014-2015","Seguimento anual das titulacións","Criterio 7. Indicadores de satisfacción e rendemento","Títulación","Máster Universitario en Avogacía","Analizar as enquisas de satisfacción.","Necesidade de mellorar o resultado das enquisas de satisfacción.","Analizar os resultados das enquisas de satisfacción.\nAdoptar as medidas oportunas coa finalidade de mellorar o resultado de éstas.","Análise nas respetivas Comisións Académicas dos resultados das enquisas de satisfacción, para adotar as medidas oportunas coa finalidade de mellorar o  resultado de éstas.","2015-05-31",null,"Comisións Académicas do Máster",null,null,"Durante o curso 2014-2015  //   Acta Comisión de Calidade 10/10/14 do centro de Ciencias Xuridicas e do Traballo.","Os resultados das enquisas de satisfacción non son satisfactorios, polo que considérase procedente s súa análise e reflexión polas comisións académicas. No centro de Ciencias Xuridicas e de traballo físose o Análise dos ítem 1 e 2 das enquisas de avaliación docente, coa finalidade de adoptar medidas que se consideren oportunas para mellorar a calidade da docencia.\nAnálise do indicador 74 das enquisas de satisfacción das titulacións coa finalidade de adoptar as medidas que se consideren precisas\nDetectar os problemas que para os grupos de interese se poñen de manifesto, en especial, en relación cos espazos destinados ao traballo, e poñer todos os medios (materiais e humanos) dispoñibles para solucionalos.\"","Realizada","A comisión académica na súa reunión ordinaria de 2 de decembro de 2014 procedió a analizar os resultados das enquisas de satisfacción, dos resultados das enquisas de avaliación docente, dos resultados dos indicadores académicos e do informe anual de resultados do curso 2013/2014. Na mesma advírtese da necesidade de mellorar os resultados das enquisas. Asemade, acórdase incentivar a participación tanto dos estudantes como dos profesores nas enquisas de satisfacción da titulación. ",null,null,"Comisión de Garantía de Calidade","A CGC revisou a implementación da mellora na súa reunión de 23 de xullo de 2015.",3,null,null,null,null,null,null,null,false,3,""]
["Facultade de Ciencias Xurídicas e do Traballo  e Facultade de Dereito de Ourense","MAT(03)","2014-2015","Seguimento anual das titulacións","Criterio 7. Indicadores de satisfacción e rendemento","Centro",null,"Analizar os resultados das enquisas.","Ausencia de conclusións das enquisas.","Obter conclusións dos resultados das enquisas en relación á xustificación do título.","Analizar na Comisión Académica do Máster as enquisas que se realizaron durante o curso 2013/2014.\nEstraer as conclusións das enquisas en relación á xustificación do título.","2015-05-31",null,"Comisión Académica do máster.",null,null,"Durante o curso 2014/2015 e na Acta da Comisión de Calidade 10/10/14 centro de Ciencias Xuridicas e do Traballo.",null,"Realizada","A comisión académica na súa reunión ordinaria de 2 de decembro de 2014 procedeu a analizar os resultados das enquisas de satisfacción, dos resultados das enquisas de avaliación docente, dos resultados dos indicadores académicos e do informe anual de Resultados do curso 2013/2014. Na mesma advírtese da necesidade de mellorar os resultados das enquisas. Asemade, acórdase incentivar a participación tanto dos estudantes como dos profesores nas enquisas de satisfacción da titulación. ","Satisfactorio",null,"Comisión de Garantía de Calidade","A CGC revisou a implementación da mellora na súa reunión de 23 de xullo de 2015.",2,null,null,null,null,null,null,null,false,3,""]
[null,null,null,null,null,null,null,null,null,null,null,null,null,null,null,null,null,null,null,null,null,null,null,null,null,null,null,null,null,null,null,null,"","",""]